bitfinex/quotes_ETHUSD_20250422
["timestamp","ask_amount","ask_price","bid_price","bid_amount"]
[1745361131457,0.7701,1749.4,1748.3,24.56365054]
[1745361131792,0.7701,1749.4,1748.6,3.0]
[1745361131994,0.7701,1749.4,1748.7,0.3]
[1745361132358,0.7693,1749.2,1748.2,0.7536]
[1745361132757,4.66557947,1749.1,1748.3,7.958]
[1745361133059,4.66557947,1749.1,1748.2,7.958]
[1745361133060,0.7693,1749.0,1748.2,7.958]
[1745361135601,0.7693,1749.0,1748.0,18.845]
[1745361135602,0.7693,1748.8,1748.0,18.845]
[1745361135770,0.7693,1748.7,1748.1,1.8845]
[1745361135971,0.7693,1748.7,1748.1,4.8845]
[1745361136168,10.76557947,1749.1,1748.3,0.7971]
[1745361136169,0.7693,1749.0,1748.3,0.7971]
[1745361136406,0.7693,1749.0,1748.6,3.0]
[1745361136703,0.7693,1749.0,1748.3,3.7971]
[1745361136904,0.7693,1749.0,1748.4,8.28971]
[1745361137261,0.7693,1749.0,1748.5,3.0]
[1745361137464,0.7693,1749.0,1748.5,8.71899315]
[1745361138004,0.7693,1749.0,1748.5,3.0]
[1745361140104,0.7693,1749.0,1748.5,3.42183696]
[1745361140401,0.7693,1749.0,1748.6,0.3421837]
[1745361140601,0.7693,1749.3,1748.9,5.71774433]
[1745361140789,0.7693,1749.6,1749.1,3.0]
[1745361140987,0.7693,1749.6,1749.2,0.05715651]
[1745361141188,0.7693,1749.6,1749.1,8.71719601]
[1745361141391,0.7693,1749.6,1749.2,0.8717196]
[1745361141596,0.7693,1749.6,1749.1,3.0]
[1745361144273,0.7693,1749.6,1749.1,3.7971]
[1745361145905,0.7693,1749.6,1749.1,9.51426244]
[1745361146079,0.7693,1749.6,1749.1,3.0]
[1745361146279,0.7693,1749.9,1749.4,3.0]
[1745361146521,0.7693,1749.9,1749.5,8.209]
[1745361147283,0.7693,1749.9,1749.5,7.909]
[1745361148517,0.7693,1749.9,1749.0,4.22349594]
[1745361148676,0.7844,1749.8,1749.0,0.42139594]
[1745361148876,0.7844,1749.8,1749.0,3.0]
[1745361149087,5.44997947,1749.7,1749.0,3.0]
[1745361149310,0.7844,1749.5,1748.9,18.847]
[1745361150410,0.7844,1749.5,1749.0,0.05716339]
[1745361151317,0.7844,1749.5,1749.0,0.43773685]
[1745361151529,0.7844,1749.5,1749.2,3.0]
[1745361151706,0.7844,1750.2,1749.4,3.0]
[1745361151877,0.7844,1750.2,1749.5,0.35714374]
[1745361152078,0.7844,1750.2,1749.5,0.3]
[1745361153211,4.66557947,1750.1,1749.4,3.0]
[1745361153511,0.7844,1750.0,1749.1,3.0]
[1745361153717,0.7844,1750.0,1749.4,3.0]
[1745361154219,0.7844,1750.0,1749.2,3.0]
[1745361154384,0.7844,1750.0,1749.4,3.0]
[1745361154716,0.7844,1750.0,1749.4,4.0909]
[1745361155219,0.7844,1750.0,1749.5,0.05715041]
[1745361156019,0.7844,1750.0,1749.4,1.0909]
[1745361157393,4.66557947,1750.0,1749.4,1.0909]
[1745361157719,0.7844,1749.9,1749.4,1.0909]
[1745361158432,0.7844,1749.8,1749.0,3.43607637]
[1745361158638,0.7844,1749.8,1749.2,3.0]
[1745361158935,0.7844,1749.8,1749.3,0.05715649]
[1745361159118,0.7844,1749.8,1749.3,6.57570843]
[1745361159437,0.7844,1749.8,1749.4,0.65757084]
[1745361159622,0.7844,1749.8,1749.4,7.908]
[1745361161132,0.7844,1749.8,1749.5,0.05715141]
[1745361161335,0.7844,1749.8,1749.4,8.7101]
[1745361162110,0.7844,1749.8,1749.4,14.42629825]
[1745361162314,0.8068,1750.2,1749.5,8.71572827]
[1745361162601,0.8068,1750.2,1749.5,4.44262983]
[1745361165443,0.8068,1750.2,1749.5,10.15854305]
[1745361165651,0.8068,1750.2,1749.5,10.15840769]
[1745361166848,0.8068,1750.2,1749.5,4.44262983]
[1745361167060,0.8068,1750.2,1749.6,0.44426298]
[1745361167260,0.8068,1749.9,1749.0,8.6564]
[1745361168119,0.8068,1749.9,1749.1,3.0]
[1745361169453,0.7568,1749.9,1749.1,3.0]
[1745361169628,0.7568,1749.9,1749.2,0.3]
[1745361170620,0.7568,1749.9,1749.2,7.862]
[1745361170820,0.7568,1749.9,1749.2,3.0]
[1745361171570,0.7568,1749.9,1749.1,7.862]
[1745361172464,0.7568,1749.9,1749.4,1.0]
[1745361173391,6.1,1750.6,1749.5,0.0571558]
[1745361173590,0.8068,1750.7,1750.1,0.7944]
[1745361173800,0.8068,1750.7,1750.3,3.0]
[1745361174000,0.8068,1751.1,1750.4,0.3]
[1745361174684,0.8068,1751.1,1750.5,7.862]
[1745361178191,5.45747947,1751.0,1750.1,0.7944]
[1745361178356,0.7919,1750.9,1750.2,7.861]
[1745361178959,0.7919,1750.9,1750.3,0.05712229]
[1745361179195,0.7919,1750.9,1750.2,7.861]
[1745361179392,0.7919,1750.9,1750.3,0.7861]
[1745361179598,0.7919,1750.9,1750.3,3.7861]
[1745361180498,0.7919,1750.9,1750.3,0.7861]
[1745361180659,0.7919,1750.9,1750.3,3.7861]
[1745361181374,0.7919,1750.9,1750.3,0.7861]
[1745361181770,3.7919,1750.9,1750.0,18.84]
[1745361181971,0.7919,1750.8,1750.1,7.86]
[1745361182961,0.7919,1750.8,1750.1,7.859]
[1745361183284,0.7919,1750.7,1750.1,7.859]
[1745361183470,0.7919,1750.6,1750.1,8.6449]
[1745361183671,0.7919,1750.6,1750.2,0.05713218]
[1745361183870,0.7919,1750.6,1750.2,3.05713218]
[1745361184136,0.7919,1750.8,1750.3,5.71312128]
[1745361184400,0.7919,1751.0,1750.4,9.52005688]
[1745361184698,0.7919,1751.0,1750.5,0.95200569]
[1745361184892,0.7919,1751.0,1750.6,7.859]
[1745361185098,0.7919,1751.0,1750.5,7.859]
[1745361185876,0.7919,1751.0,1750.6,0.05711522]
[1745361186080,0.7919,1751.0,1750.5,7.859]
[1745361186992,0.7919,1751.0,1750.3,7.859]
[1745361187191,0.7919,1751.0,1750.4,0.7859]
[1745361188015,0.7919,1751.0,1750.5,0.05711958]
[1745361188197,0.7919,1751.0,1750.4,0.7859]
[1745361188704,0.7919,1751.0,1750.2,7.858]
[1745361189622,0.7919,1751.0,1750.1,0.7859]
[1745361189930,0.7919,1751.0,1750.3,7.858]
[1745361192301,0.7919,1751.0,1750.4,7.858]
[1745361192501,0.8116,1750.9,1750.2,7.858]
[1745361194719,0.8116,1750.8,1750.2,7.858]
[1745361195727,0.8116,1750.8,1750.2,7.858]
[1745361197134,0.8116,1750.8,1750.3,0.05712659]
[1745361197335,0.8116,1750.8,1750.3,0.79151266]
[1745361198525,0.8116,1750.7,1749.6,0.753]
[1745361198687,0.8116,1750.7,1749.7,7.812]
[1745361198892,0.8116,1750.7,1749.8,3.0]
[1745361200002,0.8116,1750.7,1750.1,3.0]
[1745361200331,0.8116,1750.7,1750.2,8.112]
[1745361200508,0.8116,1750.7,1750.2,7.812]
[1745361205133,0.8116,1750.7,1750.3,0.05712729]
[1745361205297,0.8116,1750.7,1750.2,7.812]
[1745361206497,0.8116,1750.7,1749.8,0.753]
[1745361206833,0.8116,1750.7,1749.9,7.812]
[1745361207131,0.8116,1750.7,1749.9,8.5932]
[1745361207333,0.8116,1750.7,1750.0,0.05713363]
[1745361207531,0.8116,1750.7,1749.9,8.5932]
[1745361208338,0.8116,1750.7,1750.0,3.86322777]
[1745361208495,0.8116,1750.7,1750.0,3.8061]
[1745361208702,0.8116,1750.7,1750.1,0.38061]
[1745361210963,0.8116,1750.7,1750.2,7.813]
[1745361211124,0.8116,1750.7,1750.1,8.19361]
[1745361211444,0.8116,1750.7,1750.2,0.05712983]
[1745361212026,0.8116,1750.7,1750.1,8.19361]
[1745361212228,0.8116,1750.7,1750.2,0.819361]
[1745361212430,0.8114,1750.4,1749.5,0.8061]
[1745361212619,0.8114,1750.4,1749.5,7.813]
[1745361212822,0.8114,1750.4,1749.5,8.24224032]
[1745361213256,0.8114,1750.3,1749.6,7.813]
[1745361213667,0.8114,1750.3,1749.7,7.813]
[1745361213967,0.8114,1750.3,1749.7,0.7813]
[1745361214121,0.8114,1750.3,1749.6,7.813]
[1745361214519,0.8114,1750.3,1749.7,0.05714522]
[1745361215020,0.8114,1750.3,1749.6,7.813]
[1745361215964,0.8114,1750.3,1749.7,7.813]
[1745361216138,0.8114,1750.3,1749.7,7.87013644]
[1745361216453,0.8114,1750.3,1749.8,0.78701364]
[1745361216675,0.8114,1750.3,1749.9,0.05714427]
[1745361216958,0.8114,1750.3,1749.8,0.78701364]
[1745361218543,0.8114,1750.3,1749.8,3.78701364]
[1745361221867,0.8114,1750.3,1750.0,3.0]
[1745361222166,0.7543,1750.8,1750.1,0.3]
[1745361222464,0.7543,1750.8,1750.2,7.813]
[1745361226786,0.55,1750.7,1750.2,7.813]
[1745361226944,0.7999,1750.6,1750.2,7.813]
[1745361227472,0.7999,1750.5,1750.0,7.769]
[1745361227679,0.7999,1750.5,1750.1,0.7769]
[1745361227680,1.22082556,1750.5,1750.1,0.7769]
[1745361227878,0.7999,1750.4,1750.0,7.769]
[1745361228981,0.7999,1750.4,1749.8,0.78701364]
[1745361229147,0.7999,1750.1,1749.6,7.769]
[1745361229349,0.7999,1750.1,1749.4,4.7844]
[1745361229549,0.7999,1750.1,1749.5,8.24744]
[1745361229777,0.7999,1750.1,1749.6,7.769]
[1745361230144,1.23383345,1750.1,1749.6,7.769]
[1745361230688,0.7999,1750.0,1749.6,7.769]
[1745361233297,4.08061883,1750.0,1749.5,0.47844]
[1745361233496,4.08061883,1750.0,1749.4,1.0]
[1745361233497,4.08061883,1749.6,1749.4,1.0]
[1745361233794,0.7999,1749.5,1749.4,1.0]
[1745361235675,17.81984345,1749.5,1749.4,1.0]
[1745361236465,17.81984345,1749.5,1748.3,7.772]
[1745361236466,0.7999,1749.0,1748.3,7.772]
[1745361236665,1.23489,1749.0,1748.4,0.7772]
[1745361238498,0.7725,1748.9,1748.2,18.836]
[1745361238654,0.7725,1748.9,1748.3,7.772]
[1745361239169,0.7725,1748.9,1748.4,0.7868]
[1745361240687,0.7725,1748.9,1748.3,7.772]
[1745361243487,0.7725,1748.9,1748.4,0.05718584]
[1745361243806,0.7725,1749.1,1748.5,0.7868]
[1745361244096,0.7725,1749.3,1748.6,3.05717296]
[1745361244398,0.7725,1749.3,1748.6,3.0]
[1745361244557,0.7725,1749.3,1748.7,0.05717019]
[1745361244906,0.7725,1749.3,1748.8,7.774]
[1745361245057,0.7725,1749.3,1748.9,0.7774]
[1745361248096,0.7725,1749.3,1748.6,0.8292]
[1745361248297,0.7725,1749.3,1748.7,7.774]
[1745361249298,0.8201,1749.6,1749.0,3.0]
[1745361249962,0.8201,1749.6,1749.0,3.43292539]
[1745361250183,0.8201,1749.6,1749.1,0.34329254]
[1745361250472,0.8201,1749.6,1749.2,7.774]
[1745361256400,0.8201,1749.6,1749.2,8.5617]
[1745361257410,4.08411763,1749.4,1749.2,7.774]
[1745361257593,4.49252939,1749.4,1749.2,7.774]
[1745361257796,4.90421763,1749.6,1749.2,7.774]
[1745361259610,0.8201,1749.6,1749.3,0.7877]
[1745361261392,0.8201,1749.6,1749.2,7.774]
[1745361262108,0.8312,1749.8,1749.3,0.05716207]
[1745361262805,0.8312,1749.8,1749.3,0.84485677]
[1745361263010,4.91531763,1750.0,1749.3,0.7877]
[1745361263212,5.70684939,1750.0,1749.3,1.64387]
[1745361264475,0.8312,1749.9,1749.3,0.7877]
[1745361265213,4.08411763,1749.6,1748.8,20.04996066]
[1745361265375,4.08411763,1749.6,1749.0,7.729]
[1745361266109,4.08411763,1749.6,1749.3,1.0]
[1745361266310,0.40841176,1749.5,1749.3,1.0]
[1745361266629,0.8312,1749.4,1749.3,1.0]
[1745361266779,10.73411763,1749.4,1749.3,1.0]
[1745361266985,20.28156319,1749.4,1749.3,1.0]
[1745361267291,24.36568082,1749.4,1749.3,1.0]
[1745361267493,27.83749547,1749.4,1749.3,1.0]
[1745361268418,35.56649547,1749.4,1749.3,1.0]
[1745361269214,35.56649547,1749.4,1748.3,7.729]
[1745361269418,0.7793,1748.9,1748.3,7.729]
[1745361270701,5.43792968,1748.8,1748.0,3.0]
[1745361270927,0.7793,1748.7,1748.0,8.5362]
[1745361271123,0.7793,1748.7,1748.0,3.54422]
[1745361271282,0.7793,1748.5,1748.0,2.73802]
[1745361271488,0.7793,1748.5,1747.9,7.73]
[1745361271735,0.7793,1748.5,1747.8,8.5362]
[1745361272027,1.57083176,1750.0,1748.9,0.8062]
[1745361272184,5.43792968,1750.0,1749.0,18.07039059]
[1745361272389,5.43792968,1750.0,1749.2,0.8062]
[1745361272390,0.7793,1750.0,1749.2,0.8062]
[1745361273044,0.7793,1750.0,1749.2,3.31406157]
[1745361273242,0.7793,1750.0,1749.0,7.732]
[1745361273243,4.65862968,1749.9,1749.0,7.732]
[1745361273603,4.65862968,1749.9,1748.8,3.8062]
[1745361273839,4.65862968,1749.9,1748.8,4.23456709]
[1745361274029,3.7793,1750.0,1749.1,0.8062]
[1745361274269,0.37793,1749.9,1749.1,0.8062]
[1745361275408,5.03655968,1749.9,1749.1,0.8062]
[1745361276645,3.55,1749.8,1749.1,0.8062]
[1745361277148,3.0,1749.8,1749.1,0.8062]
[1745361277530,5.03655968,1749.9,1749.1,0.8062]
[1745361277738,0.50365597,1749.8,1749.2,0.05716215]
[1745361278113,0.50365597,1749.8,1749.1,0.8062]
[1745361278513,0.7793,1749.7,1748.8,4.23456709]
[1745361278715,5.43792968,1749.7,1748.9,7.731]
[1745361279744,5.43792968,1749.7,1748.8,4.23456709]
[1745361279948,0.54379297,1749.6,1748.9,8.15445671]
[1745361280620,11.53792968,1749.7,1749.0,0.05716285]
[1745361280621,6.8793,1749.7,1749.0,0.05716285]
[1745361280827,6.8793,1749.7,1748.9,8.15445671]
[1745361282539,0.812,1749.4,1748.8,0.8062]
[1745361282854,4.65862968,1749.3,1748.4,0.7648]
[1745361283255,0.812,1749.2,1748.4,0.7648]
[1745361283423,0.812,1749.2,1748.4,8.4948]
[1745361283753,0.812,1749.2,1748.5,0.9066609]
[1745361283754,1.35906297,1749.2,1748.5,0.9066609]
[1745361284157,0.812,1749.2,1748.5,0.84948]
[1745361285117,0.812,1749.2,1748.5,3.84948]
[1745361285416,6.1,1749.4,1748.6,10.50798149]
[1745361285622,6.1,1749.4,1748.7,3.0]
[1745361286133,6.1,1749.4,1748.6,3.7648]
[1745361286474,0.61,1749.3,1748.7,8.10748]
[1745361286828,0.61,1749.3,1748.7,0.37648]
[1745361287154,0.61,1749.3,1748.7,7.731]
[1745361287340,0.61,1749.3,1748.6,0.7648]
[1745361287550,0.61,1749.3,1748.7,7.69]
[1745361287726,0.61,1749.3,1748.6,0.7648]
[1745361287926,0.61,1749.3,1748.7,7.69]
[1745361288173,0.61,1749.3,1748.7,8.53548]
[1745361289531,0.61,1749.3,1748.6,0.7648]
[1745361289765,0.812,1749.2,1748.4,0.7648]
[1745361290074,0.812,1749.2,1748.0,10.37929049]
[1745361290075,0.812,1749.2,1748.2,0.7648]
[1745361290231,3.812,1748.8,1748.1,7.69]
[1745361290427,0.3812,1748.7,1748.1,7.69]
[1745361295845,0.812,1748.6,1748.1,7.69]
[1745361296046,0.812,1748.6,1747.8,26.538]
[1745361296047,0.812,1748.5,1747.8,26.538]
[1745361296731,0.812,1748.5,1747.6,0.7648]
[1745361296732,0.812,1748.4,1747.6,7.692]
[1745361296935,0.812,1748.4,1747.6,8.4612]
[1745361297578,0.7577,1748.3,1747.6,8.4612]
[1745361300544,0.7577,1748.3,1747.4,1.20320932]
[1745361300751,0.7577,1748.3,1747.5,7.693]
[1745361302986,0.7577,1748.3,1747.4,0.7648]
[1745361303191,0.7577,1748.2,1747.5,7.693]
[1745361303354,0.7577,1748.2,1747.5,7.7502162]
[1745361303560,0.7577,1748.2,1747.5,8.60171782]
[1745361303878,0.7577,1748.2,1747.1,24.86483012]
[1745361303879,3.0,1747.8,1747.1,18.856]
[1745361304089,0.7577,1747.7,1747.1,18.856]
[1745361305384,0.7577,1747.5,1746.7,7.693]
[1745361305593,0.7577,1747.5,1746.8,3.82653488]
[1745361305793,0.7577,1747.5,1746.9,0.8126]
[1745361306892,0.7577,1747.5,1746.9,3.8126]
[1745361307680,0.7577,1747.5,1746.9,8.5076]
[1745361307853,0.7577,1747.5,1746.9,0.8126]
[1745361308075,0.7577,1747.5,1746.8,7.695]
[1745361308279,0.7577,1747.5,1746.8,8.54576]
[1745361309906,0.7577,1747.5,1746.9,3.0]
[1745361310215,0.7577,1747.7,1747.0,0.8126]
[1745361310401,6.1,1748.1,1746.6,0.59479858]
[1745361310402,5.3072,1747.9,1746.6,0.59479858]
[1745361310609,4.65862968,1746.7,1744.7,0.8126]
[1745361310795,0.8943,1745.2,1744.7,1.23687429]
[1745361310996,0.8943,1745.2,1744.4,0.5]
[1745361310997,6.68245728,1745.9,1744.8,0.8698927]
[1745361311291,23.33753997,1746.6,1745.0,6.54303069]
[1745361311292,4.65862968,1746.0,1745.0,6.54303069]
[1745361311513,3.0572156,1746.4,1745.2,6.54236125]
[1745361311514,4.65862968,1746.1,1745.2,6.54236125]
[1745361311856,0.0572156,1746.4,1745.4,0.8126]
[1745361311857,4.65862968,1746.3,1745.4,0.8126]
[1745361312031,4.65862968,1746.3,1745.5,8.247]
[1745361312190,4.65862968,1746.3,1745.6,1.3747]
[1745361312382,4.65862968,1746.0,1745.6,0.8247]
[1745361312583,4.65862968,1746.0,1745.6,7.697]
[1745361313285,4.65862968,1746.0,1745.4,0.8126]
[1745361313485,4.65862968,1746.0,1745.4,8.5096]
[1745361314831,4.65862968,1745.7,1745.4,7.75427779]
[1745361314979,4.65862968,1745.7,1745.4,7.697]
[1745361315185,0.1069,1745.9,1745.4,8.4667]
[1745361315385,0.1641156,1745.9,1745.4,8.4667]
[1745361315631,0.1641156,1745.9,1744.7,1.62299508]
[1745361315632,4.65862968,1745.6,1744.7,1.62299508]
[1745361315835,4.65862968,1744.8,1744.2,0.4024811]
[1745361316058,4.65862968,1744.8,1744.5,0.05731767]
[1745361316338,5.13518265,1744.8,1744.2,8.1014811]
[1745361316937,0.0572156,1744.7,1744.2,0.4024811]
[1745361317831,5.78860356,1744.8,1744.2,0.4024811]
[1745361318005,0.0572156,1744.8,1744.2,0.4024811]
[1745361318213,4.55899416,1744.7,1744.2,0.4024811]
[1745361318399,0.1069,1744.5,1744.2,0.4024811]
[1745361321441,0.6569,1744.5,1744.2,0.4024811]
[1745361323629,12.76471261,1744.8,1744.2,8.8696811]
[1745361323630,0.1069,1744.8,1744.2,8.8696811]
[1745361323837,0.1641156,1745.1,1744.5,0.05732084]
[1745361324126,0.1069,1745.1,1744.2,8.8696811]
[1745361324333,0.1069,1745.1,1744.5,0.05730932]
[1745361324730,6.1572156,1745.2,1744.5,0.05730932]
[1745361325056,6.1572156,1745.2,1744.2,9.28881225]
[1745361325266,6.1,1745.2,1744.4,3.5]
[1745361325446,6.1,1745.2,1744.5,1.1442]
[1745361325750,6.1,1745.2,1744.4,3.5]
[1745361325751,4.55899416,1744.6,1744.4,0.5]
[1745361325954,4.66589416,1744.8,1744.4,0.5]
[1745361326250,0.0572156,1744.7,1744.4,0.5]
[1745361327139,0.1069,1744.8,1744.4,0.5]
[1745361328054,0.0572156,1744.7,1744.4,0.5]
[1745361328614,0.0572156,1744.8,1744.4,0.5]
[1745361329456,0.67818044,1744.8,1744.4,0.5]
[1745361329628,0.0572156,1744.8,1744.4,0.5]
[1745361330223,0.0572156,1744.8,1744.2,0.4024811]
[1745361331659,0.21593917,1744.7,1744.2,0.4024811]
[1745361332044,0.21593917,1744.7,1744.2,0.45980586]
[1745361332244,0.21593917,1744.7,1744.2,0.4024811]
[1745361332444,0.21593917,1744.7,1744.3,0.05732476]
[1745361332766,0.21593917,1744.7,1744.4,0.7859]
[1745361333122,0.1641156,1745.1,1744.4,0.7859]
[1745361333353,0.60082619,1745.1,1744.4,0.7859]
[1745361333538,5.73197311,1744.6,1744.2,0.4024811]
[1745361333744,0.1069,1744.8,1744.2,0.4024811]
[1745361333745,0.63041291,1744.5,1744.2,0.4024811]
[1745361334023,0.17551601,1744.5,1744.2,0.4024811]
[1745361336530,0.1641156,1744.4,1744.2,0.4024811]
[1745361336937,0.17443024,1744.3,1744.2,0.4024811]
[1745361337263,9.45738902,1744.3,1744.2,0.4024811]
[1745361337436,6.16987218,1744.3,1744.2,0.4024811]
[1745361337829,5.61987218,1744.3,1744.2,0.4024811]
[1745361338031,3.17443024,1744.3,1744.2,0.4024811]
[1745361339366,7.8582756,1744.3,1744.2,0.4024811]
[1745361339733,7.9154912,1744.3,1744.2,0.4024811]
[1745361340638,4.9154912,1744.3,1744.2,0.4024811]
[1745361344072,0.23164584,1744.3,1744.2,0.4024811]
[1745361344541,5.55934578,1744.3,1744.2,0.4024811]
[1745361345151,21.04920456,1744.3,1744.2,0.4024811]
[1745361345469,20.99198896,1744.3,1744.2,0.4024811]
[1745361345689,9.39018746,1744.2,1744.1,0.005]
[1745361345889,4.68384536,1743.8,1743.5,0.005]
[1745361346201,0.22307558,1743.7,1743.5,0.005]
[1745361348252,4.79074536,1743.6,1743.5,0.005]
[1745361348685,4.95469322,1743.6,1743.5,0.005]
[1745361348889,7.95469322,1743.6,1743.5,0.005]
[1745361349193,0.1316827,1743.6,1743.5,0.005]
[1745361349363,0.0572156,1744.2,1743.5,8.4739]
[1745361349688,0.13439883,1744.1,1743.5,8.4739]
[1745361350189,4.74106096,1744.3,1743.5,8.4739]
[1745361350386,0.4741061,1744.2,1743.6,0.84739]
[1745361350578,0.19161443,1744.1,1743.6,0.84739]
[1745361351291,0.19161443,1744.1,1743.7,0.05734373]
[1745361351489,0.13439883,1744.1,1743.7,0.0573388]
[1745361351679,0.13439883,1744.1,1743.6,0.84739]
[1745361352759,0.13439883,1744.1,1743.7,0.05734309]
[1745361352993,0.13439883,1744.1,1743.5,8.4739]
[1745361353293,0.13439883,1744.1,1743.6,0.84739]
[1745361353494,0.13439883,1744.1,1743.5,8.4739]
[1745361353694,0.19161443,1744.1,1743.6,0.05735025]
[1745361354070,0.19161443,1744.1,1743.5,8.4739]
[1745361354797,0.1069,1744.0,1743.5,8.4739]
[1745361354997,0.0572156,1743.9,1743.5,8.4739]
[1745361355295,0.20036461,1743.9,1743.5,8.4739]
[1745361356394,0.20036461,1743.9,1743.5,9.32129]
[1745361356594,0.14314901,1743.9,1743.6,0.05734879]
[1745361356793,0.60149173,1744.2,1743.5,9.32129]
[1745361356993,5.28533709,1744.2,1743.5,9.32129]
[1745361357294,0.14445253,1744.1,1743.5,9.32129]
[1745361357466,0.0572156,1744.0,1743.5,9.32129]
[1745361357914,0.14314901,1743.9,1743.5,9.32129]
[1745361358396,0.14314901,1743.9,1743.5,8.4739]
[1745361359196,0.14314901,1743.9,1743.6,0.0573477]
[1745361359411,0.14314901,1743.9,1743.5,8.4739]
[1745361359560,0.0572156,1744.1,1743.5,8.4739]
[1745361359762,0.14567084,1743.8,1743.5,8.4739]
[1745361359962,0.0572156,1744.1,1743.5,9.32129]
[1745361360464,0.1469745,1744.0,1743.5,9.32129]
[1745361360693,0.1469745,1744.0,1743.6,0.05734882]
[1745361361099,0.1469745,1744.0,1743.5,9.32129]
[1745361361963,5.28533709,1744.2,1743.5,9.32129]
[1745361362160,3.0,1744.1,1743.5,8.4739]
[1745361362486,0.14973657,1744.0,1743.5,8.4739]
[1745361362806,0.14973657,1744.0,1743.6,0.05734218]
[1745361363175,0.1069,1744.6,1743.7,5.73473168]
[1745361363375,0.1069,1744.6,1743.8,0.8361271]
[1745361363590,0.12862128,1744.5,1743.8,0.7788]
[1745361363799,0.12862128,1744.5,1743.8,5.7344764]
[1745361363975,0.12862128,1744.5,1743.9,0.63076982]
[1745361364173,0.0572156,1745.0,1744.3,5.73284731]
[1745361364377,0.14352706,1744.9,1744.4,0.7788]
[1745361364592,0.48047381,1745.0,1744.5,7.665]
[1745361364927,0.25042706,1744.9,1744.5,7.665]
[1745361365104,0.14352706,1744.9,1744.5,7.665]
[1745361365922,3.77760385,1745.1,1744.5,7.665]
[1745361366101,0.14287593,1744.8,1744.6,0.05730911]
[1745361366311,3.72038825,1745.1,1744.7,0.7788]
[1745361366613,0.14417811,1745.0,1744.7,0.7788]
[1745361367529,0.0572156,1745.2,1744.7,0.7788]
[1745361367681,0.14352706,1744.9,1744.5,8.4438]
[1745361367884,4.74106096,1745.2,1744.6,0.84438]
[1745361367885,0.0572156,1745.2,1744.6,0.84438]
[1745361368119,0.14287593,1744.8,1744.6,0.84438]
[1745361368426,0.1069,1745.3,1744.6,0.84438]
[1745361368581,0.14547998,1745.2,1744.6,0.84438]
[1745361369883,0.14547998,1745.2,1744.7,0.83610532]
[1745361370078,0.14547998,1745.2,1744.7,0.7788]
[1745361370321,0.0572156,1745.4,1744.7,0.7788]
[1745361370521,0.14482908,1745.1,1744.8,0.05730002]
[1745361370816,0.12411705,1745.0,1744.7,0.7788]
[1745361371019,6.2641156,1745.5,1744.7,0.7788]
[1745361371223,0.12628659,1745.4,1744.7,0.7788]
[1745361371629,0.12628659,1745.4,1744.9,0.7788]
[1745361373923,4.74106096,1745.3,1744.9,0.7788]
[1745361374082,4.68384536,1745.1,1744.6,0.7994]
[1745361374284,4.79074536,1744.9,1744.1,0.7994]
[1745361374506,3.0572156,1744.8,1744.1,0.7994]
[1745361374802,3.96862046,1744.8,1744.1,1.64554]
[1745361375319,3.96862046,1744.8,1744.2,0.05732444]
[1745361375484,3.96862046,1744.8,1744.1,1.64554]
[1745361375679,3.96862046,1744.8,1744.2,0.05732445]
[1745361375915,3.96862046,1744.8,1744.1,8.4604]
[1745361375916,0.12660876,1744.8,1744.1,8.4604]
[1745361376525,0.0572156,1744.7,1744.1,8.4604]
[1745361376693,3.0,1744.6,1744.1,0.7994]
[1745361376893,0.0572156,1744.5,1744.1,0.7994]
[1745361377311,0.12438875,1744.4,1744.1,0.7994]
[1745361378010,0.12438875,1744.4,1744.2,0.05732972]
[1745361378211,0.0572156,1744.6,1744.2,0.05732972]
[1745361378381,0.14744896,1744.5,1744.2,0.05732972]
[1745361378581,0.0572156,1744.8,1744.1,0.7994]
[1745361378922,0.14875158,1744.7,1744.1,0.7994]
[1745361380649,0.58552012,1744.7,1744.1,0.7994]
[1745361380849,0.0572156,1744.6,1744.1,0.7994]
[1745361381147,0.58552012,1744.7,1744.1,0.7994]
[1745361381148,0.14744896,1744.5,1744.1,0.7994]
[1745361381548,0.0572156,1744.7,1744.1,0.7994]
[1745361381718,0.14679754,1744.4,1744.1,0.7994]
[1745361381912,0.0572156,1744.7,1744.1,0.7994]
[1745361382419,0.12341692,1744.6,1744.1,0.7994]
[1745361382619,0.44148017,1744.6,1744.1,0.7994]
[1745361382826,0.0572156,1744.5,1744.1,0.7994]
[1745361383033,0.12233128,1744.4,1744.1,0.7994]
[1745361383656,0.1069,1744.5,1743.9,27.92184764]
[1745361383828,0.12233128,1744.4,1743.9,27.3484]
[1745361384241,0.17954688,1744.4,1743.9,8.4434]
[1745361385013,0.17954688,1744.4,1743.7,0.7994]
[1745361385218,3.0,1744.1,1743.5,0.8044]
[1745361385543,0.47340627,1744.0,1743.5,0.8044]
[1745361385753,0.17340627,1744.0,1743.5,0.8044]
[1745361385948,3.1069,1743.9,1743.5,0.005]
[1745361386243,0.19422319,1743.8,1743.5,0.005]
[1745361387659,0.13700759,1743.8,1743.5,0.06235361]
[1745361387857,0.12599643,1743.8,1743.5,0.06235361]
[1745361388170,0.12599643,1743.8,1743.5,0.005]
[1745361389258,0.0572156,1743.7,1743.5,0.005]
[1745361389459,27.84970825,1743.6,1743.5,0.005]
[1745361389641,31.32081428,1743.6,1743.5,0.005]
[1745361389842,5.73513649,1743.7,1743.5,0.005]
[1745361389843,4.79074536,1743.8,1743.5,0.005]
[1745361390045,0.0572156,1743.7,1743.5,0.005]
[1745361390374,6.1572156,1743.9,1743.5,0.005]
[1745361391079,3.0,1743.8,1743.5,0.005]
[1745361391268,0.0572156,1743.7,1743.5,0.005]
[1745361392946,0.1069,1743.6,1743.5,0.005]